Cogmind - Beta 12 @@@ ROGUE MODE // 2023.11.19 @ 22:24:15 Player: DreamCore Result: Destroyed by G-67 Veteran with Plasma Rifle Performance ------------- Evolutions (4) 2000 Regions Visited (10) 2000 Robots Destroyed (80) 400 Value Destroyed (2735) 2735 Prototype IDs (35) 700 Alien Tech Used (0) 0 Bonus (1173) 1173 TOTAL SCORE: 9008 Bonus ------- High Alert Combat Kills 82 Follower Combat Kills 491 Aligned with FarCom 300 Met Data Miner 300 Cogmind --------- Core Integrity 0/850 Matter 133/300 Energy 100/100 System Corruption 23% Temperature Cool (9) Movement Core (250) Ox4 Location -6/Factory Parts ------- > --- POWER (2) -------- (None) > --- PROPULSION (4) --- (None) > --- UTILITY (7) ------ Medium Storage Unit Enhanced Optical Array Enhanced Optical Array > --- WEAPON (2) ------- Chainsword > --- INVENTORY (10) --- Improved Deuterium Engine Improved Deuterium Engine VTOL Module Improved Light Armor Plating Shock Rifle Autogun Blade Saw Peak State ------------ > --- POWER ------------ Improved Deuterium Engine Micro Nuclear Core > --- PROPULSION ------- Flexi-carbon Leg Flexi-carbon Leg Armored Leg Enhanced Flexi-carbon Leg > --- UTILITY ---------- Enhanced Optical Array Enhanced Optical Array Improved Sensor Array Medium Reactive Plating Hacking Suite Skeleton Box System Guard > --- WEAPON ----------- Heavy Machine Gun Heavy Pick > --- INVENTORY -------- Micro Nuclear Core Wheel Medium Storage Unit High-powered Tractor Beam Shock Rifle [Rating: 72] Favorites ----------- Power Improved Deuterium Engine Engine Improved Deuterium Engine Power Core Micro Nuclear Core Reactor Antimatter Reactor Propulsion Improved Carbon-fiber Leg Leg Improved Carbon-fiber Leg Wheel Wheel Hover Unit Gravmag System Flight Unit Nuclear Pulse Thruster Utility Medium Storage Unit Device Improved Terrain Scanner Storage Medium Storage Unit Processor Visual Processing Unit Hackware Hacking Suite Protection Core Shielding Weapon Gauss Rifle Energy Gun Gatling Laser Energy Cannon Particle Cannon Ballistic Gun Gauss Rifle Ballistic Cannon Light Cannon Launcher Grenade Launcher Special Weapon Remote Datajack Slashing Weapon Chainsword Piercing Weapon Heavy Pick Build | -11 -10 -10 -10 -9 -8 -7 -7 -7 -6 -6 ------- Run | Jun Mat Min Exi Min Mat Fac Low Dat Pro Fac Slots Evolved 8 | . . . . . 4 2 . . . 2 Power 1 | . . . . . . . . . . 1 Propulsion 2 | . . . . . 1 1 . . . . Utility 5 | . . . . . 3 1 . . . 1 Weapon . | . . . . . . . . . . . Parts Attached 107 | . 9 . 1 7 13 11 . . 13 53 Power 18 | . . . . 1 2 2 . . 3 10 Engine 11 | . . . . . . 2 . . 2 7 Core 6 | . . . . 1 2 . . . . 3 Reactor 1 | . . . . . . . . . 1 . Propulsion 37 | . 4 . . 2 5 3 . . 5 18 Treads . | . . . . . . . . . . . Leg 26 | . 4 . . 2 5 3 . . 5 7 Wheel 2 | . . . . . . . . . . 2 Hover 5 | . . . . . . . . . . 5 Flight 4 | . . . . . . . . . . 4 Utility 31 | . 3 . 1 . 4 3 . . 3 17 Device 13 | . 2 . . . 2 2 . . 2 5 Storage 3 | . 1 . . . . . . . 1 1 Processor 7 | . . . 1 . 1 1 . . . 4 Hackware 1 | . . . . . . . . . . 1 Protection 7 | . . . . . 1 . . . . 6 Artifact . | . . . . . . . . . . . Weapon 21 | . 2 . . 4 2 3 . . 2 8 Energy Gun 5 | . . . . 3 . 1 . . 1 . Energy Cannon 2 | . . . . 1 . 1 . . . . Ballistic Gun 8 | . 1 . . . 1 1 . . 1 4 Ballistic Cannon 2 | . 1 . . . 1 . . . . . Launcher 1 | . . . . . . . . . . 1 Special Weapon 1 | . . . . . . . . . . 1 Impact Weapon . | . . . . . . . . . . . Slashing Weapon 1 | . . . . . . . . . . 1 Piercing Weapon 1 | . . . . . . . . . . 1 Special Melee Weapon . | . . . . . . . . . . . Unidentified Prototypes 2 | . . . . . . . . . 2 . Parts Lost 33 | . 1 . . 1 1 . . . 7 23 Power 3 | . . . . . . . . . 1 2 Propulsion 14 | . 1 . . . . . . . 3 10 Utility 10 | . . . . . 1 . . . 1 8 Weapon 6 | . . . . 1 . . . . 2 3 Highest Loss Streak 11 | . 1 . . 1 1 . . . 3 11 To Critical Strikes . | . . . . . . . . . . . Average Slot Usage (%) 95 | . 98 100 100 99 100 96 100 100 99 90 Engine 7 | . 14 14 14 6 . 5 7 7 4 5 Core 1 | . . . . 7 9 1 . . . 1 Reactor 1 | . . . . . . . . . 2 2 Leg 25 | . 28 28 28 28 27 27 30 30 29 20 Device 11 | . 12 14 14 . 15 16 15 15 13 9 Storage 8 | . 14 14 14 14 9 7 7 7 8 5 Processor 14 | . . . . 14 11 18 23 23 23 19 Protection 2 | . . . . . 9 2 . . . 6 Energy Gun 3 | . 2 . . 8 1 . 7 7 6 2 Ballistic Gun 7 | . 12 14 14 14 4 7 7 7 7 4 Ballistic Cannon 3 | . 12 14 14 4 3 . . . . . Naked Turns . | . . . . . . . . . . . Heaviest Build 50 | 12 21 21 21 20 32 35 30 30 39 50 Greatest Support 92 | 20 20 20 20 25 54 69 69 69 92 91 Greatest Overweight (x) 6 | . 1 1 1 . . . . . . 6 Average Overweight (x) . | . . 1 . . . . . . . . Largest Inventory Capacity 10 | . 10 10 10 10 10 10 10 10 10 10 Average Capacity 9 | . 9 10 10 10 10 10 10 10 10 7 Most Carried 10 | . 10 10 10 10 10 10 10 10 10 10 Average Carried 8 | . 8 10 10 9 8 9 9 10 9 6 Final Capacity 10 | 8 10 10 10 10 10 10 10 10 10 10 Final Carried 10 | 6 10 10 10 10 9 10 10 10 10 7 Class Distribution -------------------- 34% | Mutant 23% | Scavenger-Skirmisher 20% | Skirmisher 14% | Scavenger-Assassin 6% | Scavenger-Mutant Dominant Class ---------------- Mutant | -10/Materials Mutant | -10/Mines Mutant | -10/Exiles Scavenger-Mutant | -9/Mines Scavenger-Mutant | -8/Materials Skirmisher | -7/Factory Skirmisher | -7/Lower Caves Skirmisher | -7/Data Miner Scavenger-Skirmisher | -6/Proximity Caves Scavenger-Assassin | -6/Factory Resources | -11 -10 -10 -10 -9 -8 -7 -7 -7 -6 -6 ----------- Run | Jun Mat Min Exi Min Mat Fac Low Dat Pro Fac Matter Collected 2159 | 180 460 7 . 141 170 143 23 . 345 690 Remotely . | . . . . . . . . . . . Salvage Created 2902 | . 521 10 . 154 285 154 . . 558 1220 Parts 176 | . 35 4 . 14 14 9 . . 18 82 Haulers Intercepted 3 | . 2 . . . . 1 . . . . Recyclers Shooed 4 | . . . . . 1 1 . . . 2 Parts Field Recycled . | . . . . . . . . . . . Retrieved Matter . | . . . . . . . . . . . Parts Self-Destructed 38 | . . . . . . . . . 38 . Prevented 2 | . . . . . . . . . 2 . Kills | -11 -10 -10 -10 -9 -8 -7 -7 -7 -6 -6 ------- Run | Jun Mat Min Exi Min Mat Fac Low Dat Pro Fac Combat Hostiles Destroyed 63 | . 13 1 . 6 7 2 . . 12 22 Melee 14 | . . . . . . . . . . 14 Guns 30 | . 3 . . 6 1 . . . 12 8 Cannons 19 | . 10 1 . . 6 2 . . . . Classes Destroyed 16 | . 7 . . . 2 2 . . 2 3 Worker 4 | . 1 . . . . . . . . 3 Builder 2 | . . . . . . 1 . . . 1 Tunneler 1 | . . . . . . . . . . 1 Hauler 3 | . 2 . . . . 1 . . . . Recycler 2 | . . . . . . . . . . 2 Mechanic 1 | . 1 . . . . . . . . . Operator 1 | . 1 . . . . . . . . . Watcher 3 | . 2 . . . . . . . . 1 Swarmer 17 | . 3 1 . 3 . . . . 4 6 Cutter 2 | . . . . . . . . . . 2 Grunt 20 | . 10 . . 3 2 . . . 2 3 Brawler 2 | . . . . . . . . . 2 . Duelist 3 | . . . . . . . . . 3 . Sentry 6 | . . . . . 3 . . . 1 2 Hunter 3 | . . . . . 2 . . . . 1 Programmer 10 | . . . . . . 2 . . . 8 Best Kill Streak 6 | . 4 1 . 6 3 2 . . 4 6 Combat Bots Only 6 | . 4 1 . 6 3 1 . . 4 4 Max Kills in Single Turn 2 | . 2 1 . 1 1 2 . . 1 1 Gunslinging . | . . . . . . . . . . . Exploded . | . . . . . . . . . . . Melee 1 | . . . . . . . . . . 1 Uniques/NPCs Destroyed . | . . . . . . . . . . . Combat | -11 -10 -10 -10 -9 -8 -7 -7 -7 -6 -6 -------- Run | Jun Mat Min Exi Min Mat Fac Low Dat Pro Fac Damage Taken 6195 | . 438 . . 346 421 197 . . 1410 3383 Core 1368 | . 65 . . 66 35 48 . . 286 868 Absorbed by Shields . | . . . . . . . . . . . Redirected to Shielding 63 | . . . . . . . . . . 63 Core Remaining (%) 73 | 100 . . . 47 93 . . . 52 . Volleys Fired 221 | . 60 1 . 16 25 15 . . 45 59 Largest 2 | . 2 2 . 2 2 2 . . 2 2 Hottest 112 | . 80 55 . 60 112 96 . . 109 109 Shots Fired 384 | . 120 2 . 31 46 30 . . 89 66 Gun 263 | . 69 1 . 24 6 15 . . 89 59 Cannon 114 | . 51 1 . 7 40 15 . . . . Launcher 7 | . . . . . . . . . . 7 Special . | . . . . . . . . . . . Kinetic 256 | . 102 2 . 23 18 15 . . 45 51 Thermal 121 | . 18 . . 8 28 15 . . 44 8 Explosive 7 | . . . . . . . . . . 7 Electromagnetic . | . . . . . . . . . . . Robot Hit Streak 11 | . 8 1 . 5 11 7 . . 11 4 Robot Miss Streak 12 | . 12 1 . 2 4 3 . . 4 6 Penetration Max 1 | . . . . . . . . . 1 . Secondary Targets 2 | . . . . . . . . . 2 . Max Gunslinging Chain 1 | . . . . . . . . . 1 . Shots Hit Robots 273 | . 63 1 . 19 28 18 . . 70 74 Core Hits 148 | . 27 1 . 8 23 5 . . 39 45 Critical Kills . | . . . . . . . . . . . Critical Parts Destroyed . | . . . . . . . . . . . Critical Strikes 13 | . 3 . . 1 . . . . . 9 Burn 1 | . . . . . . . . . . 1 Blast 4 | . 3 . . 1 . . . . . . Sever 5 | . . . . . . . . . . 5 Impale 3 | . . . . . . . . . . 3 Melee Attacks 62 | . . . . . . . . . . 62 Impact . | . . . . . . . . . . . Slashing 35 | . . . . . . . . . . 35 Piercing 27 | . . . . . . . . . . 27 Sneak Attacks 7 | . . . . . . . . . . 7 Combat Hostiles . | . . . . . . . . . . . Follow-up Attacks . | . . . . . . . . . . . Damage Inflicted 6707 | . 1043 16 . 266 556 436 . . 1595 2795 Guns 2988 | . 422 . . 196 49 189 . . 1595 537 Cannons 1429 | . 615 16 . 70 483 245 . . . . Explosions 333 | . . . . . . . . . . 333 Melee 1874 | . . . . . . . . . . 1874 Ramming 83 | . 6 . . . 24 2 . . . 51 Kinetic 2717 | . 906 16 . 190 267 189 . . 721 428 Thermal 1700 | . 131 . . 76 265 245 . . 874 109 Explosive 333 | . . . . . . . . . . 333 Electromagnetic . | . . . . . . . . . . . Impact . | . . . . . . . . . . . Slashing 1040 | . . . . . . . . . . 1040 Piercing 834 | . . . . . . . . . . 834 Highest Corruption 23 | . . . . . . 1 . . . 23 Average Corruption 12 | . . . . . . 1 . . . 13 Corruption Purged 1 | . . . . . . 1 . . . . Corruption Blocked . | . . . . . . . . . . . Effects 104 | . . . . . . 1 . . . 103 Message Errors 28 | . . . . . . 1 . . . 27 Matter Fused 23 | . . . . . . . . . . 23 Heat Flow Errors 13 | . . . . . . . . . . 13 Energy Discharges 10 | . . . . . . . . . . 10 Parts Fused 4 | . . . . . . . . . . 4 Data Loss (minor) 12 | . . . . . . . . . . 12 Data Loss (major) 4 | . . . . . . . . . . 4 Misfires 1 | . . . . . . . . . . 1 Alerts 1 | . . . . . . . . . . 1 Misdirections 6 | . . . . . . . . . . 6 Weapon Failures 2 | . . . . . . . . . . 2 Overload Shots . | . . . . . . . . . . . Overflow Damage 178 | . . . . . 11 39 . . . 128 Projectiles 50 | . . . . . 11 39 . . . . Explosions 32 | . . . . . . . . . . 32 Melee 96 | . . . . . . . . . . 96 Knockbacks 19 | . 6 . . 7 6 . . . . . Impact . | . . . . . . . . . . . Kinetic 14 | . 5 . . 4 5 . . . . . Secondary 5 | . 1 . . 3 1 . . . . . Self-Inflicted Damage 62 | . . . . . . . . . . 62 Shots 2 | . . . . . . . . . . 2 Rammed . | . . . . . . . . . . . Targets Rammed 23 | . 3 1 . . 6 1 . . . 12 Kicked 23 | . 3 1 . . 6 1 . . . 12 Crushed . | . . . . . . . . . . . Highest Temperature 253 | . 219 . . 54 168 . . . 99 253 Average Temperature 63 | . 71 . . 23 45 . . . 23 82 Received Heat Transfer 918 | . 177 . . 96 99 . . . 168 378 Siege Activations . | . . . . . . . . . . . Robots Corrupted . | . . . . . . . . . . . Combat Hostiles . | . . . . . . . . . . . Parts Fried . | . . . . . . . . . . . Impact Corruptions . | . . . . . . . . . . . Robots Melted . | . . . . . . . . . . . Combat Hostiles . | . . . . . . . . . . . Parts Melted 7 | . 1 . . . 1 . . . 4 1 Heat Transferred 3407 | . 300 . . 175 481 370 . . 1859 222 Parts Sabotaged 2 | . . . . . . . . . . 2 Parts Stolen . | . . . . . . . . . . . Parts Stripped . | . . . . . . . . . . . Power Chain Reactions . | . . . . . . . . . . . Missiles Intercepted . | . . . . . . . . . . . Alert | -11 -10 -10 -10 -9 -8 -7 -7 -7 -6 -6 ------- Run | Jun Mat Min Exi Min Mat Fac Low Dat Pro Fac Peak Influence 606 | . 215 35 . 152 385 153 . . . 606 Initial 86 | . . . . . 59 86 . . . 81 Average 145 | . 54 16 . 99 248 54 . . . 203 Maximum Alert Level 2 | . 1 . . . 1 . . . . 2 Low Security (%) 72 | . 93 100 . 100 48 100 . . . 55 Level 1 19 | . 6 . . . 51 . . . . 27 Level 2 8 | . . . . . . . . . . 17 Level 3 . | . . . . . . . . . . . Level 4 . | . . . . . . . . . . . Level 5 . | . . . . . . . . . . . High Security . | . . . . . . . . . . . Max Security . | . . . . . . . . . . . Squads Dispatched 26 | . 2 . . 1 1 1 . . 1 20 Investigation 2 | . . . . . . . . . . 2 Extermination 9 | . . . . . . 1 . . . 8 Reinforcement 9 | . 2 . . . 1 . . . . 6 Assault 3 | . . . . 1 . . . . 1 1 Garrison 3 | . . . . . . . . . . 3 Intercept . | . . . . . . . . . . . Searches Triggered 1 | . . . . . . . . . . 1 Data Miner Redirects 1 | . . . . . . . . . . 1 Construction Impeded . | . . . . . . . . . . . Haulers Reinforced . | . . . . . . . . . . . Active Scanning Responses . | . . . . . . . . . . . Cargo Convoy Interrupts 1 | . . . . . . . . . . 1 Stealth | -11 -10 -10 -10 -9 -8 -7 -7 -7 -6 -6 --------- Run | Jun Mat Min Exi Min Mat Fac Low Dat Pro Fac Distress Signals 3 | . 1 . . . 1 . . . . 1 Communications Jammed . | . . . . . . . . . . . Distress Signals . | . . . . . . . . . . . Times Spotted 134 | . 32 1 . 8 13 2 . . 31 47 Peak Tracking Total 7 | . 5 1 . 6 4 2 . . 6 7 Tactical Retreats 9 | . . . . . 1 . . . 5 3 Traps | -11 -10 -10 -10 -9 -8 -7 -7 -7 -6 -6 ------- Run | Jun Mat Min Exi Min Mat Fac Low Dat Pro Fac Traps Triggered 4 | . . . . . . 2 . . . 2 Indirectly . | . . . . . . . . . . . Trap Hack Attempts . | . . . . . . . . . . . Triggered . | . . . . . . . . . . . Disarmed . | . . . . . . . . . . . Reprogrammed . | . . . . . . . . . . . Reused 5 | . . . . 2 . 2 . . 1 . Traps Extracted . | . . . . . . . . . . . Installed 5 | . . . . 2 . 2 . . 1 . Triggered 6 | . . . . 2 . 2 . . 1 1 Most Traps Carried 3 | . . . . 3 3 3 1 1 1 . Machines | -11 -10 -10 -10 -9 -8 -7 -7 -7 -6 -6 ---------- Run | Jun Mat Min Exi Min Mat Fac Low Dat Pro Fac Machines Disabled 4 | . 2 . . . . . . . . 2 Max in Single Turn 1 | . 1 . . . . . . . . 1 Machines Repaired . | . . . . . . . . . . . Machines Sabotaged . | . . . . . . . . . . . Overloaded Fab Kills . | . . . . . . . . . . . Hacking | -11 -10 -10 -10 -9 -8 -7 -7 -7 -6 -6 --------- Run | Jun Mat Min Exi Min Mat Fac Low Dat Pro Fac Machines Accessed 26 | . 6 . 1 . 2 2 . 4 . 11 Terminals 16 | . 4 . . . 2 2 . . . 8 Fabricators . | . . . . . . . . . . . Repair Stations 1 | . . . . . . . . . . 1 Recycling Units 4 | . 2 . . . . . . . . 2 Scanalyzers . | . . . . . . . . . . . Garrison Access . | . . . . . . . . . . . Total Hacks 75 | . 16 . 1 . 3 5 . 29 . 21 Successful 44 | . 6 . 1 . 1 1 . 29 . 6 Failed 31 | . 10 . . . 2 4 . . . 15 Catastrophic 10 | . 4 . . . 2 . . . . 4 Database Lockouts . | . . . . . . . . . . . Manual 30 | . 12 . 1 . 3 2 . . . 12 Terminals 36 | . 11 . . . 3 5 . . . 17 Fabricators . | . . . . . . . . . . . Repair Stations 2 | . . . . . . . . . . 2 Recycling Units 7 | . 5 . . . . . . . . 2 Scanalyzers . | . . . . . . . . . . . Garrison Access . | . . . . . . . . . . . Terminal Hacks 35 | . 2 . 1 . 1 1 . 29 . 1 Record 12 | . . . . . . 1 . 11 . . Part Schematic 10 | . . . . . . . . 10 . . Robot Schematic 5 | . . . . . . . . 5 . . Prototype ID Bank 3 | . . . . . . . . 3 . . Branch Access Points 2 | . . . . . 1 . . . . 1 Terminal Index 1 | . 1 . . . . . . . . . Zone Layout 1 | . 1 . . . . . . . . . EX-Prototype ID Bank 1 | . . . 1 . . . . . . . Fabricator Hacks . | . . . . . . . . . . . Repair Station Hacks 1 | . . . . . . . . . . 1 Scan Component 1 | . . . . . . . . . . 1 Recycling Unit Hacks 4 | . 2 . . . . . . . . 2 Report Inventory 4 | . 2 . . . . . . . . 2 Scanalyzer . | . . . . . . . . . . . Garrison Access Hacks . | . . . . . . . . . . . Unauthorized Hacks 4 | . 2 . . . . . . . . 2 Terminals 2 | . . . . . . . . . . 2 Assimilate 2 | . . . . . . . . . . 2 Fabricators . | . . . . . . . . . . . Repair Stations . | . . . . . . . . . . . Recycling Units 2 | . 2 . . . . . . . . . Reject 2 | . 2 . . . . . . . . . Scanalyzers . | . . . . . . . . . . . Garrison Access . | . . . . . . . . . . . Data Cores Recovered . | . . . . . . . . . . . Used . | . . . . . . . . . . . Hacking Detections 20 | . 5 . . . 2 2 . . . 11 Full Trace Events 1 | . . . . . . . . . . 1 Feedback Events 1 | . . . . . . . . . . 1 Corruption 1 | . . . . . . . . . . 1 Feedback Blocked . | . . . . . . . . . . . Robot Schematics Acquired 5 | . . . . . . . . 5 . . Robots Built . | . . . . . . . . . . . Authchips . | . . . . . . . . . . . Time . | . . . . . . . . . . . Total Robot Build Rating . | . . . . . . . . . . . Part Schematics Acquired 10 | . . . . . . . . 10 . . Parts Built . | . . . . . . . . . . . Authchips . | . . . . . . . . . . . Time . | . . . . . . . . . . . Total Part Build Rating . | . . . . . . . . . . . Parts Repaired . | . . . . . . . . . . . Time . | . . . . . . . . . . . Parts Recycled . | . . . . . . . . . . . Recycled Matter . | . . . . . . . . . . . Retrieved Matter . | . . . . . . . . . . . Retrieved Components . | . . . . . . . . . . . Parts Scanalyzed . | . . . . . . . . . . . Part Schematics Acquired . | . . . . . . . . . . . Parts Damaged . | . . . . . . . . . . . Bothacking | -11 -10 -10 -10 -9 -8 -7 -7 -7 -6 -6 ------------ Run | Jun Mat Min Exi Min Mat Fac Low Dat Pro Fac Used RIF Installer . | . . . . . . . . . . . Robots Hacked . | . . . . . . . . . . . Non-combat . | . . . . . . . . . . . Combat . | . . . . . . . . . . . Robot Hacks Applied . | . . . . . . . . . . . Relay Couplers Released . | . . . . . . . . . . . Fabnet Peak Effective % . | . . . . . . . . . . . Robots Rewired 1 | . . . . . . . . . 1 . Allies Hacked . | . . . . . . . . . . . Hacks Repelled . | . . . . . . . . . . . Allies | -11 -10 -10 -10 -9 -8 -7 -7 -7 -6 -6 -------- Run | Jun Mat Min Exi Min Mat Fac Low Dat Pro Fac Total Allies 3 | . . . . 1 . . . . 2 . Largest Group 1 | . . . . 1 . . . . 1 . Highest-Rated Group 96 | . . . . 31 . . . . 96 . Highest-Rated Ally 96 | . . . . 31 . . . . 96 . Total Orders . | . . . . . . . . . . . Ally Attacks 49 | . . . . 9 . . . . 40 . Total Damage 1526 | . . . . 168 . . . . 1358 . Kills 13 | . . . . 1 . . . . 12 . Allies Corrupted 1 | . . . . . . . . . 1 . Allies Melted . | . . . . . . . . . . . Intel | -11 -10 -10 -10 -9 -8 -7 -7 -7 -6 -6 ------- Run | Jun Mat Min Exi Min Mat Fac Low Dat Pro Fac Robot Analysis Total . | . . . . . . . . . . . Derelict Logs Recovered 5 | . . 1 . 1 . . 2 . 1 . Drone Launches . | . . . . . . . . . . . Drone Recoveries . | . . . . . . . . . . . Exploration | -11 -10 -10 -10 -9 -8 -7 -7 -7 -6 -6 ------------- Run | Jun Mat Min Exi Min Mat Fac Low Dat Pro Fac Turns Passed 10978 | . 1712 281 781 369 547 856 612 399 1373 4048 Spaces Moved 6285 | 1 842 146 411 228 318 627 359 128 773 2452 Core 1 | . . . . . . . . . . 1 Treads . | . . . . . . . . . . . Legs 5425 | 1 842 146 411 228 318 627 359 128 773 1592 Wheels 8 | . . . . . . . . . . 8 Hover 118 | . . . . . . . . . . 118 Flight 733 | . . . . . . . . . . 733 Fastest Speed 40 | 120 120 190 120 120 120 120 120 120 120 40 Average Speed 124 | 120 173 190 189 120 120 120 120 120 120 96 Slowest Speed 355 | 120 190 190 190 120 120 120 120 120 120 355 Overloaded Moves . | . . . . . . . . . . . Propulsion Burnouts . | . . . . . . . . . . . Robots Hopped 7 | . . . . . . . . . . 7 Cave-ins Triggered 1 | . . . . . . . . . . 1 Exploration Rate (%) 48 | 2 87 44 72 33 25 12 61 77 85 36 Regions Visited 10 Branch Regions 6 Pre-discovered Areas 2 | . . . . . . . 1 1 . . Known Exits Taken 6 | . . . 1 1 1 1 . 1 1 . Unknown Exits Taken 4 | 1 1 1 . . . . 1 . . . Scrap Searched 6 | . . . . 2 . . 1 . 3 . Spaces Dug 6 | . . . . . . . . . . 6 Terrain Destroyed 60 | . . . . . . . . . 1 59 Melee . | . . . . . . . . . . . Projectile 5 | . . . . . . . . . 1 4 AOE 53 | . . . . . . . . . . 53 Terrain Rammed . | . . . . . . . . . . . Walls Destroyed . | . . . . . . . . . . . Machines Disabled . | . . . . . . . . . . . Actions | -11 -10 -10 -10 -9 -8 -7 -7 -7 -6 -6 --------- Run | Jun Mat Min Exi Min Mat Fac Low Dat Pro Fac Total 8977 | . 975 147 413 298 440 699 540 373 1128 3964 Wait 2141 | . 46 . . 26 63 35 180 246 278 1267 Move 6261 | . 841 145 410 227 317 626 358 127 772 2438 Hop 7 | . . . . . . . . . . 7 Pick Up 55 | . 8 . 1 7 7 3 1 . 9 19 Fast Attach 34 | . 1 . . 3 . 7 . . 1 22 Attach 29 | . 1 . . . 6 1 . . 6 15 Detach 5 | . . . . . . 1 . . . 4 Swap 44 | . 7 . 1 4 7 3 . . 6 16 Drop 76 | . 8 . 1 13 9 5 1 . 9 30 Fire 221 | . 60 1 . 16 25 15 . . 45 59 Melee 62 | . . . . . . . . . . 62 Ram . | . . . . . . . . . . . Kick 23 | . 3 1 . . 6 1 . . . 12 Crush . | . . . . . . . . . . . Escape Stasis 13 | . . . . . . . . . . 13 Rewire 1 | . . . . . . . . . 1 . Trap 5 | . . . . 2 . 2 . . 1 . Miscellaneous . | . . . . . . . . . . . Route ------- -11/Junkyard -10/Materials (discovered 4 exits: [*Mat x2] / [*Min x2]) -10/Mines (discovered 2 exits: [*Mat] / *Exi) -10/Exiles (discovered 2 exits: *Min x2) -9/Mines -8/Materials (discovered 2 exits: *Fac x2) -7/Factory -7/Lower Caves (discovered 2 exits: [*Low] / *Dat) -7/Data Miner -6/Proximity Caves -6/Factory (discovered 3 exits: *Fac / Low x2) History --------- Turn | Location | Event 1 | -11/Junkyard | Discovered new exit (range 0) 1 | -11/Junkyard | Entered Materials 269 | -10/Materials | Discovered new exit (range 16) 310 | -10/Materials | Build established: Mutant 364 | -10/Materials | Discovered new exit (range 11) 1246 | -10/Materials | Discovered new exit (range 9) 1597 | -10/Materials | Discovered new exit (range 6) 1713 | -10/Materials | Entered Mines 1752 | -10/Mines | Assembled infested the area 1814 | -10/Mines | Learned 2 Materials zone layouts 1931 | -10/Mines | Discovered new exit (range 7) 1984 | -10/Mines | Deemed a non-threat by the Exiles lab entrance 1986 | -10/Mines | Discovered new exit (range 5) 1994 | -10/Mines | Entered Exiles 2040 | -10/Exiles | Met 8R-AWN 2072 | -10/Exiles | Met EX-HEX 2129 | -10/Exiles | Met EX-BIN 2156 | -10/Exiles | Aligned with FarCom system 2158 | -10/Exiles | Given EX-Vault access code 2207 | -10/Exiles | Opened EX-Vault 2221 | -10/Exiles | Found Skeleton Box 2266 | -10/Exiles | Warned to stay clear of 0b10 Research branches 2363 | -10/Exiles | Met EX-DEC 2526 | -10/Exiles | Discovered new exit (range 11) 2745 | -10/Exiles | Discovered new exit (range 15) 2772 | -10/Exiles | Identified exit to Mines 2775 | -10/Exiles | Left Exiles lab with Skeleton Box 2775 | -10/Exiles | Entered Mines 2776 | -9/Mines | Met a Derelict testing a Signal Generator 2825 | -9/Mines | Found a hidden stash of uninstalled traps 2834 | -9/Mines | Learned 2 Materials zone layouts 2914 | -9/Mines | Core integrity fell below 50% 3118 | -9/Mines | Discovered new exit (range 8) 3137 | -9/Mines | Identified exit to Materials 3144 | -9/Mines | Entered Materials 3144 | -8/Materials | Evolved 4 slots: Propulsion x1, Utility x3 3145 | -8/Materials | Identified exit to Factory 3249 | -8/Materials | Build established: Scavenger-Mutant 3475 | -8/Materials | Discovered exit to Factory (range 16) 3691 | -8/Materials | Entered Factory 3691 | -7/Factory | Evolved 2 slots: Propulsion x1, Utility x1 4034 | -7/Factory | Build established: Skirmisher 4513 | -7/Factory | Discovered new exit (range 17) 4546 | -7/Factory | Identified exit to Lower Caves 4547 | -7/Factory | Entered Lower Caves 5003 | -7/Lower Caves | Learned location of Zion (-6) 5023 | -7/Lower Caves | Learned location of 1 exit from Factory 5131 | -7/Lower Caves | Discovered new exit (range 14) 5157 | -7/Lower Caves | A Derelict revealed a hidden shortcut to meet someone special 5159 | -7/Lower Caves | Entered Data Miner 5159 | -7/Data Miner | Discovered new exit (range 6) 5164 | -7/Data Miner | Identified exit to Proximity Caves 5189 | -7/Data Miner | Met Data Miner 5228 | -7/Data Miner | Learned location of Section 7 (-2) 5228 | -7/Data Miner | Acquired the access code to Warlord's prototype stash 5516 | -7/Data Miner | Received God Mode back door access code from Data Miner 5558 | -7/Data Miner | Entered Proximity Caves 5797 | -6/Proximity Caves | Escorted by Enhanced Grunt 6188 | -6/Proximity Caves | Build established: Scavenger-Skirmisher 6287 | -6/Proximity Caves | Attracted the attention of an 0b10 outpost 6396 | -6/Proximity Caves | Lost 3 parts (1p2n) 6673 | -6/Proximity Caves | Lost 3 parts (1n1u1w) 6916 | -6/Proximity Caves | Discovered new exit (range 13) 6929 | -6/Proximity Caves | Identified exit to Factory 6931 | -6/Proximity Caves | Entered Factory 6931 | -6/Factory | Evolved 2 slots: Power x1, Utility x1 6932 | -6/Factory | Identified exit to Factory 7664 | -6/Factory | Cargo convoy interrupted 7710 | -6/Factory | Spotted B-75 Beast 8179 | -6/Factory | Incoming investigation squad redirected 8729 | -6/Factory | Crushed by falling debris 8729 | -6/Factory | System corruption reached 10% 8784 | -6/Factory | Lost 5 parts (3n2u) 9045 | -6/Factory | Build established: Mutant 9071 | -6/Factory | Identified exit to Lower Caves 9651 | -6/Factory | Build established: Scavenger-Assassin 9731 | -6/Factory | Search patrols dispatched 9763 | -6/Factory | Core integrity fell below 50% 10442 | -6/Factory | Garrison activated, responded to threat 10781 | -6/Factory | First assault squad dispatched 10975 | -6/Factory | Core integrity fell below 20% 10979 | -6/Factory | Destroyed by G-67 Veteran with Plasma Rifle Last Messages --------------- 10965_ U-05 Engineer builds a Wall. 10966_ U-05 Engineer lays Concrete. 10967_ Mic. Nuclear Core destroyed. 10967_ Knocked back. 10968_ Acquired 3 matter. 10968_ U-05 Engineer lays Concrete. 10970_ C-30 ARC bursts open, deploying its payload. 10970_ G-67 Veteran unfolds itself. 10970_ G-50 Soldier unfolds itself. 10970_ E-15 Imp unfolds itself. 10971_ U-05 Engineer lays Concrete. 10972_ Surge Thruster destroyed. 10972_ Knocked back. 10973_ U-05 Engineer lays Concrete. 10974_ VTOL Module blown off. 10974_ Mic. Nuclear Core blown off. 10974_ E-15 Imp destroyed. 10975_ U-05 Engineer lays Concrete. 10977_ Knocked back. 10978_ U-05 Engineer lays Concrete. Map ----- +----------------------------------------------------+ | ??? ################ ### | | ????? ################ ### | | ??????#?############### ### | | ???????? ### ### | | ???????? ### ### | | ????????"" """ """ ### ### | | ????????"Y """ """ ### ### | | ????? ? "" """ """ ### ### | | ????# ?? ###"####### | | ????# ?? ############## ####### | | ##### ######################### | | ############ ####### | | ############"####### | | ########## ! #### | | * + #### | | % [ # != #### | | % # !* #### | | = # ! #### | | ?### %% # #### | | ???# ##+##;##### | | ???#% g ##### | | ???# %% %g %##### | | ???# g g ###?? | | ???# ! !#??#? | | ???# %**#??#? | | #### = % /%!@#??#? | | "" ==%% %%=#???? | | """ = #####H# ??? | | "" % #?? #*# #?? | | ""F" = #??## ###?? | | """" ##########?? ??? | | """ #??????????? u ??? | | #### ""#??????????# < #?? | | ???# ""#??????????# #?? | | ???# ""#??????????# %#?? | | ???# G#??????????#######?? | | ???# %""#??????????????????? | | ???# %%""#??????????????????? | | #### ""##?????????????????? | | #?????????????????? | | #?????????????????? | | #??######?????????? | | #??""""""?????????? | | #? """""" #???????? | | ####### #? """""" #???????? | | ?????# # """""" #???????? | | ??????# # #???????? | | ??????# + ] #???????? | | ?????# # #???????? | | ?????# # ! #???????? | +----------------------------------------------------+ Best States ------------- Heat Dissipation 53 Energy Generation 32 Energy Capacity 1015 Matter Stores 300 Matter Capacity 300 Sight Range 22 Robot Scan Range 15 Terrain Scan Range 16 Terrain Scan Density 210 Corruption Containment 8 Armor Coverage 375 Resistance: KI 30 Core Shielding 20 Propulsion Shielding 33 Evasion (%) 62 Offensive Hacking 10 Item Schematics ----------------- Combat Drone Bay | -7/Data Miner | Free Lgt. Regenerative Plating | -7/Data Miner | Free Biomechanical Wings | -7/Data Miner | Free Gravity Neutralizer | -7/Data Miner | Free Imp. Heavy Laser | -7/Data Miner | Free Gyrokinetic Inverter | -7/Data Miner | Free Imp. Launcher Guidance Computer | -7/Data Miner | Free Enh. Gauss Cannon | -7/Data Miner | Free Imp. Component Analysis Suite | -7/Data Miner | Free Neutrino Core | -7/Data Miner | Free Robot Schematics ------------------ R-10 Processor | -7/Data Miner | Free B-48 Gladiator | -7/Data Miner | Free O-24 Administrator | -7/Data Miner | Free M-28 Smith | -7/Data Miner | Free B-60 Warrior | -7/Data Miner | Free Fabricated ------------ Nothing Alien Tech Used ----------------- None Achievements -------------- The Oracle Challenges ------------ None Game ------ Seed RiotCloakingDesublimator Manual? 0 Play Time 01:31:46 Cumulative 24.8 hours Start 2023.11.19 @ 20:46:10 End 2023.11.19 @ 22:24:15 Sessions 1 Manual Loads 0 Difficulty Rogue Special Mode None Game No. 32 Rogue 32 Adventurer 0 Explorer 0 Win Type - Total 0 Types 0/0/0/0/0/0/0/0/0 Lore% 28 Gallery% 26 Achievement% 22 Wizard Run 0 Options --------- ASCII 0 Keyboard 1 Movement Vi Keybinds 0 Fullscreen 1 Font 24/Smallcaps Map View 183x50 Tactical HUD 1 Map Filters NONE Filters NONE Steam 1 RUN: f4361392-085d-4197-b0a1-a6854b404eaa